bitfinex/quotes_BTCUSD_20220212
["timestamp","ask_amount","ask_price","bid_price","bid_amount"]
[1644667951054,1.94589051,42409.0,42408.0,0.00303187]
[1644667951553,1.74589051,42409.0,42408.0,0.00303187]
[1644667951754,1.39470178,42409.0,42408.0,0.00303187]
[1644667952895,1.44470178,42409.0,42408.0,0.00303187]
[1644667954999,1.50369078,42409.0,42408.0,0.00303187]
[1644667955648,1.58702264,42409.0,42408.0,0.00303187]
[1644667955848,1.93826161,42409.0,42408.0,0.00303187]
[1644667956748,1.87927261,42409.0,42408.0,0.00303187]
[1644667957053,1.44470178,42409.0,42408.0,0.00303187]
[1644667957849,1.4445838,42409.0,42408.0,0.00303187]
[1644667963550,1.5945838,42409.0,42408.0,0.00303187]
[1644667964149,1.94584025,42409.0,42408.0,0.00303187]
[1644667966252,2.00483025,42409.0,42408.0,0.00303187]
[1644667967500,1.7147984,42409.0,42408.0,0.00303187]
[1644667968299,1.7620984,42409.0,42408.0,0.00303187]
[1644667969301,1.7031084,42409.0,42408.0,0.00303187]
[1644667970501,1.7620984,42409.0,42408.0,0.00303187]
[1644667972253,0.20463402,42407.0,42400.0,0.00034042]
[1644667972451,0.30112652,42401.0,42395.0,0.00024042]
[1644667972652,0.62012108,42401.0,42394.0,0.0001]
[1644667972848,0.05,42400.0,42394.0,0.00034042]
[1644667973049,0.05,42400.0,42394.0,0.0001]
[1644667973050,0.35112652,42400.0,42394.0,0.0001]
[1644667973253,0.30112652,42400.0,42394.0,0.00024042]
[1644667973567,0.49842652,42401.0,42392.0,0.00034042]
[1644667973749,0.30112652,42400.0,42392.0,0.0001]
[1644667973951,0.49842652,42401.0,42392.0,0.00034042]
[1644667974151,0.49842652,42401.0,42392.0,0.0001]
[1644667974412,0.49842652,42401.0,42392.0,0.00034042]
[1644667974612,0.13046912,42398.0,42392.0,0.0001]
[1644667974815,0.49842652,42401.0,42399.0,0.26093823]
[1644667975012,0.49842652,42401.0,42400.0,0.0001]
[1644667975213,0.1973,42401.0,42400.0,0.0001]
[1644667975413,0.0973,42401.0,42400.0,0.00034042]
[1644667975615,0.0973,42401.0,42400.0,0.0001]
[1644667975918,0.156295,42401.0,42400.0,0.0001]
[1644667976116,0.156295,42401.0,42400.0,0.00034042]
[1644667976314,0.206295,42401.0,42400.0,0.0001]
[1644667976915,0.206295,42401.0,42400.0,0.00034042]
[1644667980059,0.156295,42401.0,42400.0,0.00034042]
[1644667980461,0.0973,42401.0,42400.0,0.00034042]
[1644667981361,0.1473,42401.0,42400.0,0.00034042]
[1644667983005,0.1473,42401.0,42400.0,0.00028042]
[1644667983204,0.1473,42401.0,42400.0,4e-05]
[1644667983404,0.1473,42401.0,42400.0,0.00028042]
[1644667983607,0.1473,42401.0,42400.0,4e-05]
[1644667984605,0.42605035,42401.0,42400.0,4e-05]
[1644667984905,0.2473,42401.0,42400.0,4e-05]
[1644667985952,0.1473,42401.0,42400.0,4e-05]
[1644667988657,0.49542629,42403.0,42400.0,4e-05]
[1644667988854,0.0473,42402.0,42400.0,4e-05]
[1644667989253,0.0473,42402.0,42400.0,0.00152815]
[1644667989502,0.0473,42402.0,42400.0,0.00176857]
[1644667989503,0.27293296,42401.0,42400.0,0.00176857]
[1644667989704,0.32023296,42401.0,42400.0,0.00176857]
[1644667989903,0.1473,42401.0,42400.0,0.00176857]
[1644667991101,0.0473,42401.0,42400.0,0.00176857]
[1644667992303,0.31837707,42401.0,42400.0,0.00176857]
[1644667992705,0.1473,42401.0,42400.0,0.00176857]
[1644667993854,0.0473,42401.0,42400.0,0.00176857]
[1644667994251,0.0473,42401.0,42400.0,0.00028042]
[1644667994452,0.0473,42401.0,42400.0,4e-05]
[1644667994654,0.31546309,42401.0,42400.0,0.00028042]
[1644667994853,0.46546309,42401.0,42400.0,4e-05]
[1644667995054,0.46546309,42401.0,42400.0,0.00028042]
[1644667995253,0.46546309,42401.0,42400.0,4e-05]
[1644667995455,0.46546309,42401.0,42400.0,0.00028042]
[1644667995652,0.46546309,42401.0,42400.0,4e-05]
[1644667995854,0.1973,42401.0,42400.0,0.00028042]
[1644667996056,0.1973,42401.0,42400.0,4e-05]
[1644667996255,0.0973,42401.0,42400.0,0.00028042]
[1644667996457,0.0973,42401.0,42400.0,4e-05]
[1644667996655,0.0973,42401.0,42400.0,0.00028042]
[1644667996915,0.0473,42401.0,42400.0,4e-05]
[1644667997107,0.0473,42401.0,42400.0,0.00028042]
[1644667997307,0.0473,42401.0,42400.0,4e-05]
[1644667997507,0.0473,42401.0,42400.0,0.00028042]
[1644667997708,0.0473,42401.0,42400.0,4e-05]
[1644667997908,0.0473,42401.0,42400.0,0.00028042]
[1644667998117,0.0473,42401.0,42400.0,4e-05]
[1644667998308,0.0473,42401.0,42400.0,0.00028042]
[1644667998507,0.0473,42401.0,42400.0,4e-05]
[1644667998708,0.0473,42401.0,42400.0,0.00028042]
[1644667998909,0.0473,42401.0,42400.0,4e-05]
[1644667999113,0.0473,42401.0,42400.0,0.00028042]
[1644667999309,0.0473,42401.0,42400.0,4e-05]
[1644667999609,0.0473,42401.0,42400.0,0.00028042]
[1644668000010,0.32277592,42401.0,42400.0,0.00028042]
[1644668000214,0.32277592,42401.0,42399.0,0.22755529]
[1644668000215,0.47893592,42401.0,42399.0,0.22755529]
[1644668000411,0.75,42400.0,42399.0,0.22755529]
[1644668000652,0.8473,42400.0,42399.0,0.22755529]
[1644668000854,0.9473,42400.0,42399.0,0.22755529]
[1644668002352,1.26050784,42400.0,42399.0,0.22755529]
[1644668004606,1.76050784,42400.0,42399.0,0.22755529]
[1644668004810,1.4473,42400.0,42399.0,0.22755529]
[1644668005409,1.4473,42400.0,42399.0,0.22765529]
[1644668005812,1.4473,42400.0,42376.0,0.7422]
[1644668005813,0.809006,42397.0,42376.0,0.7422]
[1644668006013,0.42,42394.0,42377.0,0.4905]
[1644668006214,0.07003,42391.0,42377.0,0.4905]
[1644668006412,0.3473,42390.0,42377.0,0.4905]
[1644668006813,0.30696582,42389.0,42377.0,0.4905]
[1644668007017,0.2007049,42383.0,42377.0,0.4905]
[1644668007214,0.0473,42382.0,42377.0,0.0011]
[1644668007713,0.6,42381.0,42373.0,0.22369548]
[1644668007915,0.7,42381.0,42373.0,0.22369548]
[1644668008150,0.05,42380.0,42373.0,0.22369548]
[1644668008554,0.0473,42382.0,42373.0,0.27369548]
[1644668008753,0.0473,42382.0,42373.0,0.22369548]
[1644668008953,0.0473,42382.0,42375.0,0.07107605]
[1644668009355,0.0473,42382.0,42375.0,0.29499903]
[1644668009753,0.0473,42382.0,42375.0,0.22392298]
[1644668010556,0.05,42389.0,42378.0,0.05]
[1644668010557,0.30105735,42388.0,42378.0,0.05]
[1644668010758,0.30105735,42388.0,42382.0,0.05]
[1644668010958,0.30105735,42388.0,42386.0,0.05]
[1644668011157,0.30105735,42388.0,42387.0,0.30239779]
[1644668011557,0.30105735,42388.0,42387.0,0.0001]
[1644668011756,0.30105735,42388.0,42385.0,0.0001]
[1644668012608,0.30105735,42388.0,42380.0,0.0001]
[1644668012808,0.35105735,42388.0,42380.0,0.0001]
[1644668015958,0.65105735,42388.0,42380.0,0.0001]
[1644668016160,0.0473,42387.0,42380.0,0.0001]
[1644668016356,0.0473,42387.0,42377.0,0.0001]
[1644668016357,0.059027,42385.0,42377.0,0.0001]
[1644668016558,0.0973,42384.0,42377.0,0.0001]
[1644668017157,0.0973,42384.0,42376.0,0.0001]
[1644668017361,0.0973,42384.0,42376.0,0.00051333]
[1644668018361,0.27422731,42383.0,42375.0,0.0001]
[1644668018561,0.0473,42382.0,42376.0,0.00051333]
[1644668019608,0.0473,42382.0,42375.0,0.0001]
[1644668019911,0.0473,42382.0,42376.0,0.00051332]
[1644668020707,0.0473,42382.0,42375.0,0.0001]
[1644668020908,0.0473,42382.0,42376.0,0.00051332]
[1644668021308,0.0473,42382.0,42376.0,0.00075241]
[1644668021510,0.0473,42382.0,42376.0,0.00051332]
[1644668021708,0.0473,42382.0,42376.0,0.00075241]
[1644668021908,0.0473,42382.0,42375.0,0.00033909]
[1644668022108,0.0473,42382.0,42376.0,0.00051332]
[1644668022511,0.0473,42382.0,42376.0,0.00075241]
[1644668022708,0.0473,42382.0,42376.0,0.00051332]
[1644668022909,0.106327,42382.0,42376.0,0.00075241]
[1644668023153,0.106327,42382.0,42375.0,0.00033909]
[1644668023355,0.106327,42382.0,42375.0,0.0001]
[1644668023554,0.106327,42382.0,42375.0,0.00033909]
[1644668023756,0.106327,42382.0,42375.0,0.0001]
[1644668023954,0.106327,42382.0,42375.0,0.00033909]
[1644668024157,0.059019,42380.0,42375.0,0.0001]
[1644668024356,0.05,42382.0,42381.0,0.06485399]
[1644668024557,0.32682049,42382.0,42381.0,0.06495399]
[1644668024756,0.42682049,42382.0,42381.0,0.06495399]
[1644668024956,0.27682049,42382.0,42381.0,0.06495399]
[1644668026260,0.32682049,42382.0,42381.0,0.06495399]
[1644668026660,0.42682049,42382.0,42381.0,0.06495399]
[1644668027507,0.15,42382.0,42381.0,0.06495399]
[1644668027906,0.05,42382.0,42381.0,0.06495399]
[1644668028107,0.159025,42383.0,42381.0,0.06495399]
[1644668028307,0.159025,42383.0,42382.0,0.0001]
[1644668028508,0.49566289,42383.0,42382.0,0.00027909]
[1644668028709,0.49566289,42383.0,42382.0,4e-05]
[1644668028908,0.75366,42382.0,42381.0,0.06485399]
[1644668029107,0.80096,42382.0,42381.0,0.06485399]
[1644668029306,0.90096,42382.0,42381.0,0.06485399]
[1644668029509,0.15041178,42382.0,42381.0,0.06485399]
[1644668030309,0.05041178,42382.0,42381.0,0.06485399]
[1644668030952,0.317144,42382.0,42381.0,0.06485399]
[1644668031351,0.15041178,42382.0,42381.0,0.06485399]
[1644668032452,0.15041178,42382.0,42377.0,0.00023844]
[1644668032453,0.809032,42381.0,42377.0,0.00023844]
[1644668032652,0.059032,42380.0,42376.0,0.00051046]
[1644668032857,0.059032,42380.0,42375.0,0.00023844]
[1644668033053,0.059032,42380.0,42376.0,0.00051045]
[1644668034054,0.059032,42380.0,42373.0,0.00023844]
[1644668034254,0.059032,42380.0,42372.0,0.03]
[1644668034255,0.059032,42380.0,42376.0,0.00051044]
[1644668035105,0.059032,42380.0,42373.0,0.00023844]
[1644668035305,0.059032,42380.0,42376.0,0.00051044]
[1644668036305,0.059032,42380.0,42373.0,0.00023844]
[1644668036508,0.059032,42380.0,42376.0,0.00051044]
[1644668037610,0.059032,42380.0,42373.0,0.00023844]
[1644668037811,0.059032,42380.0,42376.0,0.00051044]
[1644668038655,0.059032,42380.0,42373.0,0.00023844]
[1644668038856,0.059032,42380.0,42376.0,0.00051044]
[1644668039859,0.059032,42380.0,42373.0,0.00023844]
[1644668040058,0.059032,42380.0,42376.0,0.00051044]
[1644668041061,0.059032,42380.0,42373.0,0.00023844]
[1644668041260,0.059032,42380.0,42376.0,0.00051044]
[1644668042307,0.059032,42380.0,42373.0,0.00023844]
[1644668042506,0.059032,42380.0,42376.0,0.00051044]
[1644668043507,0.059032,42380.0,42373.0,0.00023844]
[1644668043708,0.059032,42380.0,42376.0,0.00051044]
[1644668044710,0.059032,42380.0,42373.0,0.00023844]
[1644668044909,0.059032,42380.0,42376.0,0.00051044]
[1644668045960,0.32439946,42380.0,42373.0,0.00023844]
[1644668046157,0.059032,42380.0,42376.0,0.00051044]
[1644668046356,0.059032,42380.0,42376.0,0.00061044]
[1644668046560,0.00311178,42382.0,42377.0,0.333322]
[1644668046861,0.00311178,42382.0,42378.0,0.0001]
[1644668047060,0.00311178,42382.0,42380.0,0.21646803]
[1644668047256,0.00311178,42382.0,42381.0,0.0001]
[1644668048658,1.178e-05,42382.0,42381.0,0.0001]
[1644668048962,1.178e-05,42382.0,42380.0,0.0501]
[1644668049159,1.178e-05,42382.0,42381.0,0.30318471]
[1644668050012,1.178e-05,42382.0,42381.0,0.63650671]
[1644668050214,1.178e-05,42382.0,42381.0,0.73650671]
[1644668050412,1.178e-05,42382.0,42381.0,0.78380671]
[1644668050813,1.178e-05,42382.0,42381.0,0.45048471]
[1644668051816,1.178e-05,42382.0,42381.0,0.78380671]
[1644668052015,0.30097428,42399.0,42382.0,6e-05]
[1644668052314,0.00051027,42392.0,42391.0,0.0638449]
[1644668052614,0.00051027,42392.0,42391.0,0.0639449]
[1644668052813,0.00051027,42392.0,42391.0,0.20382976]
[1644668053262,0.058992,42398.0,42391.0,0.20382976]
[1644668053464,0.00051032,42394.0,42392.0,0.0001]
[1644668054364,0.30097428,42401.0,42392.0,0.0001]
[1644668054365,0.40097428,42401.0,42392.0,0.0001]
[1644668054566,0.00051031,42395.0,42394.0,0.00153096]
[1644668054969,0.00051031,42395.0,42394.0,0.33485296]
[1644668055167,0.00051031,42395.0,42394.0,0.3810175]
[1644668055568,0.05,42402.0,42394.0,0.3810175]
[1644668055766,0.00027414,42397.0,42395.0,0.0473]
[1644668055966,0.00027414,42397.0,42396.0,0.28262663]
[1644668056169,0.00027414,42397.0,42395.0,0.0473]
[1644668056766,0.05,42402.0,42396.0,0.61499897]
[1644668057009,0.05,42402.0,42396.0,0.28167697]
[1644668057010,0.00027414,42398.0,42396.0,0.28167697]
[1644668058008,0.05,42402.0,42396.0,0.28167697]
[1644668058207,0.00027414,42399.0,42398.0,0.19947667]
[1644668059209,0.05,42402.0,42398.0,0.19947667]
[1644668059607,0.00051074,42401.0,42398.0,0.19947667]
[1644668060011,0.00051074,42401.0,42399.0,0.27958452]
[1644668060212,0.00051074,42401.0,42399.0,0.61234597]
[1644668060416,1.5457858,42409.0,42400.0,0.62795207]
[1644668060417,0.05,42402.0,42400.0,0.62795207]
[1644668060662,0.05,42402.0,42398.0,0.19947667]
[1644668060663,0.00051073,42402.0,42401.0,0.28769175]
[1644668060859,0.00051073,42402.0,42401.0,0.0809876]
[1644668061659,0.05,42408.0,42398.0,0.48217236]
[1644668061870,0.00051072,42404.0,42398.0,0.48217236]
[1644668062060,0.00051072,42404.0,42399.0,0.22858332]
[1644668062862,0.05,42408.0,42399.0,0.22858332]
[1644668063160,0.00051072,42404.0,42402.0,0.07242205]
[1644668063362,0.04551072,42408.0,42399.0,0.22858332]
[1644668063562,0.05898,42406.0,42399.0,0.22858332]
[1644668064420,0.05854016,42406.0,42400.0,0.0001]
[1644668065416,0.05881383,42406.0,42400.0,0.0001]
[1644668066416,0.05854016,42406.0,42400.0,0.0001]
[1644668066619,0.05881383,42406.0,42400.0,0.0001]
[1644668067018,0.05881383,42406.0,42401.0,0.06456704]
[1644668067216,0.00027367,42406.0,42402.0,0.0001]
[1644668067720,0.24590112,42408.0,42402.0,0.0001]
[1644668067918,0.00051071,42406.0,42402.0,0.0001]
[1644668068760,0.04551072,42408.0,42402.0,0.0001]
[1644668070161,0.00051019,42407.0,42402.0,0.0001]
[1644668070362,0.117971,42406.0,42405.0,0.19049265]
[1644668070561,0.167971,42406.0,42405.0,0.19059265]
[1644668072010,0.167971,42406.0,42405.0,0.09354998]
[1644668072412,0.05,42406.0,42405.0,0.09354998]
[1644668072810,0.10949519,42408.0,42405.0,0.09354998]
[1644668073011,0.10949519,42408.0,42405.0,0.09344998]
[1644668073715,0.108985,42408.0,42405.0,0.09354998]
[1644668073911,0.108985,42408.0,42405.0,0.09344998]
[1644668074612,0.108985,42408.0,42405.0,0.09354998]
[1644668074812,0.108985,42408.0,42405.0,0.09344998]
[1644668075411,0.108985,42408.0,42405.0,0.09354998]
[1644668075656,0.108985,42408.0,42405.0,0.09344998]
[1644668076258,0.108985,42408.0,42405.0,0.09354998]
[1644668076457,0.108985,42408.0,42405.0,0.09344998]
[1644668076758,0.05,42408.0,42405.0,0.09344998]
[1644668077160,0.05,42408.0,42405.0,0.09354998]
[1644668077357,0.05,42408.0,42405.0,0.09344998]
[1644668077961,0.05,42408.0,42405.0,0.09354998]
[1644668078160,0.05,42408.0,42405.0,0.09344998]
[1644668079508,0.05,42408.0,42405.0,0.09354998]
[1644668079807,0.05,42408.0,42405.0,0.09344998]
[1644668080608,0.2503904,42408.0,42405.0,0.09344998]
[1644668081008,0.2503904,42408.0,42405.0,0.09354998]
[1644668081212,0.2503904,42408.0,42399.0,0.0001]
[1644668081411,0.058982,42406.0,42399.0,0.0001]
[1644668082408,0.05949219,42406.0,42399.0,0.0001]
[1644668083261,0.058982,42406.0,42401.0,0.25862831]
[1644668083462,0.05949219,42406.0,42402.0,0.0001]
[1644668083861,0.25988259,42406.0,42402.0,0.0001]
[1644668084261,0.05949219,42406.0,42402.0,0.0001]
[1644668084461,1.0093724,42406.0,42400.0,0.21726299]
[1644668084666,1.0098826,42406.0,42396.0,0.3049938]
[1644668084864,1.0098826,42406.0,42392.0,0.30216368]
[1644668085063,0.05,42404.0,42392.0,0.30216368]
[1644668085265,0.058993,42402.0,42391.0,0.39864151]
[1644668085466,0.2593834,42402.0,42391.0,0.39864151]
[1644668085666,0.21182134,42399.0,42391.0,0.3966]
[1644668085864,0.25912134,42399.0,42394.0,0.00153096]
[1644668087323,0.509765,42399.0,42394.0,0.00153096]
[1644668087516,0.25912134,42399.0,42394.0,0.00153096]
[1644668087716,0.35912134,42399.0,42394.0,0.00153096]
[1644668088316,0.059002,42397.0,42394.0,0.00153096]
[1644668088917,0.118006,42397.0,42394.0,0.00153096]
[1644668090121,0.165306,42397.0,42394.0,0.00153096]
[1644668090972,0.118021,42396.0,42394.0,0.00153096]
[1644668091170,0.05,42396.0,42394.0,0.00153096]
[1644668091370,0.40097428,42396.0,42394.0,0.00153096]
[1644668091772,0.0473,42395.0,42394.0,0.00153096]
[1644668092074,0.34827428,42395.0,42394.0,0.00153096]
[1644668092272,0.44827428,42395.0,42394.0,0.00153096]
[1644668092473,0.1473,42395.0,42394.0,0.00153096]
[1644668092672,0.39808099,42395.0,42394.0,0.00153096]
[1644668093371,0.29808099,42395.0,42394.0,0.00153096]
[1644668093572,0.1473,42395.0,42394.0,0.00153096]
[1644668094610,0.0473,42395.0,42394.0,0.00153096]
[1644668097215,0.29808373,42395.0,42394.0,0.00153096]
[1644668097413,0.0473,42395.0,42394.0,0.00153096]
[1644668097614,0.29808126,42395.0,42394.0,0.00153096]
[1644668097817,0.0473,42395.0,42394.0,0.00153096]
[1644668098016,0.39827428,42395.0,42394.0,0.00153096]
[1644668098264,0.49827428,42395.0,42394.0,0.00153096]
[1644668098463,0.1973,42395.0,42394.0,0.00153096]
[1644668098664,0.15,42395.0,42394.0,0.00153096]
[1644668099164,0.44497058,42395.0,42394.0,0.00153096]
[1644668100766,0.49227058,42395.0,42394.0,0.00153096]
[1644668101568,0.55127758,42395.0,42394.0,0.00153096]
[1644668102009,0.45127758,42395.0,42394.0,0.00153096]
[1644668102210,0.55127758,42395.0,42394.0,0.00153096]
[1644668103011,0.49227058,42395.0,42394.0,0.00153096]
[1644668105659,0.49227058,42395.0,42394.0,0.00146354]
[1644668107659,0.55127758,42395.0,42394.0,0.00146354]
[1644668108458,0.49227058,42395.0,42394.0,0.00146354]
[1644668109059,0.49227058,42395.0,42394.0,0.09018414]
[1644668109259,0.49227058,42395.0,42394.0,0.17900474]
[1644668110614,0.44802286,42395.0,42394.0,0.17900474]
[1644668110815,0.40072286,42395.0,42394.0,0.17900474]
[1644668111211,0.15,42395.0,42394.0,0.17900474]
[1644668111411,0.05,42395.0,42394.0,0.17900474]
[1644668111613,0.45072286,42396.0,42394.0,0.17900474]
[1644668111811,0.45072286,42396.0,42395.0,0.0001]
[1644668112012,0.45072286,42396.0,42394.0,0.17890474]
[1644668112013,0.45072286,42396.0,42394.0,0.43423723]
[1644668112213,0.2,42396.0,42394.0,0.43423723]
[1644668112414,0.1,42396.0,42394.0,0.43423723]
[1644668112617,0.05,42396.0,42394.0,0.43423723]
[1644668112816,0.20055964,42396.0,42394.0,0.43423723]
[1644668113014,0.20055964,42396.0,42394.0,0.17890474]
[1644668113269,0.2,42397.0,42394.0,0.17890474]
[1644668113270,0.50097428,42397.0,42394.0,0.17890474]
[1644668113471,0.35097428,42395.0,42394.0,0.17890474]
[1644668113668,0.05,42395.0,42394.0,0.17890474]
[1644668113869,0.1,42395.0,42394.0,0.17890474]
[1644668114270,0.15,42395.0,42394.0,0.17890474]
[1644668114867,0.05,42395.0,42394.0,0.17890474]
[1644668115068,0.50097428,42396.0,42394.0,0.17890474]
[1644668115468,0.29167655,42395.0,42394.0,0.00146354]
[1644668119814,0.2507453,42395.0,42394.0,0.00146354]
[1644668120215,0.2,42396.0,42394.0,0.00146354]
[1644668120416,0.2507462,42395.0,42394.0,0.00146354]
[1644668120656,0.1,42396.0,42394.0,0.00146354]
[1644668120857,0.1,42396.0,42394.0,0.17890474]
[1644668121056,0.1,42396.0,42395.0,0.0001]
[1644668123161,0.36902533,42396.0,42395.0,0.0001]
[1644668123363,0.46902533,42396.0,42395.0,0.0001]
[1644668123862,0.62185502,42396.0,42395.0,0.0001]
[1644668124260,1.16554186,42396.0,42395.0,0.0001]
[1644668124512,1.07037832,42396.0,42395.0,0.0001]
[1644668124714,0.75,42395.0,42394.0,0.17890474]
[1644668124911,1.47286539,42395.0,42394.0,0.17890474]
[1644668125113,1.47286539,42395.0,42389.0,0.0004743]
[1644668125114,0.75,42394.0,42389.0,0.0004743]
[1644668125312,0.75,42394.0,42382.0,6e-05]
[1644668125313,0.05,42390.0,42382.0,6e-05]
[1644668125519,0.25714489,42387.0,42384.0,0.00023844]
[1644668125713,0.42400967,42386.0,42382.0,6e-05]
[1644668126013,0.0973,42385.0,42382.0,6e-05]
[1644668126213,0.1473,42385.0,42382.0,6e-05]
[1644668126615,0.26565725,42384.0,42382.0,6e-05]
[1644668126812,0.1473,42385.0,42382.0,6e-05]
[1644668126813,0.0473,42383.0,42382.0,6e-05]
[1644668127012,0.0473,42383.0,42382.0,0.00029844]
[1644668127215,0.0473,42383.0,42382.0,6e-05]
[1644668128361,0.31431819,42383.0,42382.0,6e-05]
[1644668128564,0.36431819,42383.0,42382.0,6e-05]
[1644668128761,0.46701819,42383.0,42382.0,6e-05]
[1644668129562,0.51431819,42383.0,42382.0,6e-05]
[1644668129963,0.2473,42383.0,42382.0,6e-05]
[1644668130163,0.49820946,42383.0,42382.0,6e-05]
[1644668132614,0.2473,42383.0,42382.0,6e-05]
[1644668132813,0.1473,42383.0,42382.0,6e-05]
[1644668133716,0.36197106,42383.0,42382.0,6e-05]
[1644668133916,0.42448106,42383.0,42382.0,6e-05]
[1644668134122,0.52448106,42383.0,42382.0,6e-05]
[1644668134318,0.059038,42381.0,42374.0,0.00189692]
[1644668134518,0.109038,42379.0,42374.0,0.00189692]
[1644668134715,0.0473,42378.0,42374.0,0.00189692]
[1644668134915,0.0473,42378.0,42372.0,0.0301]
[1644668135116,0.0473,42378.0,42372.0,0.03]
[1644668138768,0.0473,42378.0,42373.0,0.00050823]
[1644668139813,0.106339,42378.0,42372.0,0.03]
[1644668140013,0.106339,42378.0,42373.0,0.00050822]
[1644668140612,0.0473,42378.0,42373.0,0.00050822]
[1644668141014,0.0473,42378.0,42372.0,0.03]
[1644668141214,0.0473,42378.0,42373.0,0.00050822]
[1644668142214,0.0473,42378.0,42372.0,0.03]
[1644668142414,0.0473,42378.0,42373.0,0.00050822]
[1644668143263,0.0473,42378.0,42372.0,0.03]
[1644668143465,0.0473,42378.0,42373.0,0.00050822]
[1644668144566,0.0473,42378.0,42372.0,0.03]
[1644668144768,0.0473,42378.0,42373.0,0.00050822]
[1644668146069,0.75,42377.0,42367.0,0.29528534]
[1644668146269,0.456333,42376.0,42367.0,0.0020332]
[1644668146482,0.05,42375.0,42367.0,0.0020332]
[1644668146670,0.0473,42374.0,42367.0,0.0020332]
[1644668146934,0.0473,42374.0,42365.0,0.3649]
[1644668147122,0.19772371,42372.0,42365.0,0.3649]
[1644668147324,0.0473,42371.0,42365.0,0.3649]
[1644668147522,0.0473,42371.0,42365.0,0.0011]
[1644668147925,0.0473,42371.0,42366.0,0.0011]
[1644668148124,0.3473,42371.0,42366.0,0.0011]
[1644668148424,0.206338,42371.0,42366.0,0.0011]
[1644668148722,0.41007598,42370.0,42366.0,0.0011]
[1644668148925,0.55737598,42370.0,42366.0,0.0011]
[1644668149922,0.55737598,42370.0,42366.0,0.00133658]
[1644668150324,0.7993783,42370.0,42366.0,0.00133658]
[1644668150526,0.55737598,42370.0,42366.0,0.00133658]
[1644668150767,0.55737598,42370.0,42366.0,0.00184243]
[1644668151771,0.2473,42370.0,42366.0,0.00133658]
[1644668152073,0.2473,42370.0,42366.0,0.00184243]
[1644668152270,0.1473,42370.0,42366.0,0.00184243]
[1644668152968,0.1473,42370.0,42366.0,0.00133658]
[1644668153168,0.1473,42370.0,42366.0,0.00184243]
[1644668154169,0.1473,42370.0,42366.0,0.00133658]
[1644668154424,0.1473,42370.0,42366.0,0.00184243]
[1644668154425,0.23957871,42370.0,42366.0,0.00184243]
[1644668155414,0.23957871,42370.0,42366.0,0.00133658]
[1644668155615,0.23957871,42370.0,42366.0,0.00184243]
[1644668156517,0.23957871,42370.0,42366.0,0.00133658]
[1644668156715,0.23957871,42370.0,42366.0,0.00184243]
[1644668157820,0.1,42370.0,42366.0,0.00133658]
[1644668158021,0.183328,42376.0,42366.0,0.00184243]
[1644668158277,0.1243,42376.0,42366.0,0.00184243]
[1644668158474,0.1243,42376.0,42366.0,0.00194243]
[1644668158672,0.1243,42376.0,42366.0,0.26392161]
[1644668158872,0.1243,42376.0,42367.0,0.0001]
[1644668159072,0.1243,42376.0,42369.0,0.00050583]
[1644668159676,0.1743,42376.0,42369.0,0.00050583]
[1644668160074,0.05,42376.0,42367.0,0.00033658]
[1644668160274,0.15,42379.0,42370.0,0.00050582]
[1644668160475,0.15050572,42379.0,42370.0,0.00050582]
[1644668161274,0.15,42379.0,42367.0,0.00033658]
[1644668161475,0.15,42379.0,42371.0,0.00050583]
[1644668161674,0.15050573,42379.0,42371.0,0.00050583]
[1644668161914,0.059028,42376.0,42371.0,0.00050583]
[1644668162520,0.059028,42376.0,42367.0,0.00033658]
[1644668162718,0.095,42379.0,42371.0,0.00050582]
[1644668162920,0.05050572,42379.0,42371.0,0.00050582]
[1644668163720,0.05050572,42379.0,42370.0,0.00023658]
[1644668163721,0.05,42379.0,42369.0,0.00033658]
[1644668163925,0.05,42379.0,42371.0,0.00023228]
[1644668164922,0.0006,42376.0,42369.0,0.00033658]
[1644668165120,0.0006,42376.0,42371.0,0.00050532]
[1644668165877,0.6790957,42378.0,42376.0,0.00119999]
[1644668166077,0.45783997,42378.0,42376.0,0.00119999]
[1644668166276,0.7313051,42378.0,42376.0,0.00119999]
[1644668166479,0.0473,42377.0,42376.0,0.00119999]
[1644668166779,0.61776545,42377.0,42376.0,0.00119999]
[1644668166979,0.58271185,42377.0,42376.0,0.00119999]
[1644668167177,1.18506044,42377.0,42376.0,0.00119999]
[1644668167381,0.87323004,42377.0,42376.0,0.00119999]
[1644668168678,0.7218712,42377.0,42376.0,0.00119999]
[1644668170318,0.75,42376.0,42372.0,0.00023658]
[1644668170520,0.36011467,42373.0,42371.0,0.00050515]
[1644668170720,0.50741467,42373.0,42371.0,0.00050515]
[1644668170918,0.60741467,42373.0,42371.0,0.00050515]
[1644668171120,0.60741467,42373.0,42367.0,0.00023658]
[1644668171320,0.26455156,42371.0,42370.0,0.00050514]
[1644668171520,0.54343918,42371.0,42370.0,0.00050514]
[1644668171718,0.64343918,42371.0,42370.0,0.00050514]
[1644668171920,0.74343918,42371.0,42370.0,0.00050514]
[1644668172318,0.74343918,42371.0,42367.0,0.00023658]
[1644668172319,0.2,42371.0,42367.0,0.00023658]
[1644668172520,0.2,42371.0,42368.0,0.00050514]
[1644668172725,0.059051,42369.0,42363.0,0.0022]
[1644668172925,0.75,42363.0,42361.0,0.01317531]
[1644668173169,0.0473,42362.0,42361.0,0.01317531]
[1644668173569,0.13662,42362.0,42361.0,0.00601985]
[1644668173770,0.33216803,42362.0,42361.0,0.00601985]
[1644668173971,0.75146235,42362.0,42361.0,0.00601985]
[1644668174173,0.85146235,42362.0,42361.0,0.00601985]
[1644668174569,0.85146122,42362.0,42361.0,0.00601985]
[1644668174969,0.43216803,42362.0,42361.0,0.00601985]
[1644668175173,0.73239571,42362.0,42361.0,0.00601985]
[1644668175375,1.03358553,42362.0,42361.0,0.00601985]
[1644668175772,0.73239571,42362.0,42361.0,0.00601985]
[1644668176372,0.98328936,42362.0,42361.0,0.00601985]
[1644668176571,0.73239571,42362.0,42361.0,0.00601985]
[1644668176771,0.98328934,42362.0,42361.0,0.00601985]
[1644668177323,0.73239571,42362.0,42361.0,0.00601985]
[1644668177722,0.98328999,42362.0,42361.0,0.00601985]
[1644668179126,0.73239571,42362.0,42361.0,0.00601985]
[1644668180775,0.49122403,42362.0,42361.0,0.00601985]
[1644668181176,0.74211831,42362.0,42361.0,0.00601985]
[1644668181775,0.68306231,42362.0,42361.0,0.00398015]
[1644668182677,0.71919771,42362.0,42361.0,0.00398015]